bitfinex-derivatives/quotes_SOLF0:USTF0_20230830
["timestamp","ask_amount","ask_price","bid_price","bid_amount"]
[1693362080619,99.87,21.643,21.636,99.87]
[1693362081919,99.87,21.643,21.635,99.87]
[1693362088130,99.87,21.639,21.628,20.9432]
[1693362088424,99.87,21.639,21.626,36.81553397]
[1693362088425,99.87,21.639,21.631,99.87]
[1693362089624,13.79,21.639,21.632,99.87]
[1693362091930,99.87,21.639,21.631,99.87]
[1693362095831,99.87,21.633,21.625,99.87]
[1693362100634,36.97827091,21.639,21.623,0.06]
[1693362100828,19.1114,21.632,21.625,99.87]
[1693362101226,99.87,21.633,21.625,99.87]
[1693362107440,13.79,21.633,21.626,99.87]
[1693362111948,36.75855688,21.635,21.628,99.87]
[1693362112151,99.87,21.636,21.628,99.87]
[1693362116052,136.31773357,21.636,21.628,99.87]
[1693362118050,99.87,21.633,21.625,99.87]
[1693362119747,13.8,21.63,21.623,99.93]
[1693362121957,99.87,21.632,21.624,99.87]
[1693362135762,13.8,21.633,21.629,99.87]
[1693362135968,36.40499306,21.634,21.629,99.87]
[1693362136268,99.87,21.636,21.629,99.87]
[1693362143073,13.79,21.633,21.623,0.06]
[1693362144677,13.79,21.633,21.626,99.87]
[1693362144979,13.79,21.633,21.623,0.06]
[1693362144980,99.87,21.636,21.628,99.87]
[1693362150173,13.79,21.633,21.626,99.87]
[1693362152081,99.87,21.632,21.624,99.87]
[1693362158882,36.59944495,21.635,21.628,99.87]
[1693362159179,99.87,21.636,21.628,99.87]
[1693362168794,136.45834411,21.636,21.628,99.87]
[1693362171003,36.58834411,21.636,21.63,99.87]
[1693362171302,99.87,21.638,21.63,99.87]
[1693362174804,99.87,21.638,21.623,0.06]
[1693362177301,99.87,21.638,21.631,13.87]
[1693362182105,99.87,21.638,21.63,99.87]
[1693362188111,99.87,21.638,21.631,13.87]
[1693362189103,13.79,21.633,21.623,0.06]
[1693362189414,13.79,21.633,21.626,99.87]
[1693362189607,13.79,21.63,21.623,0.06]
[1693362189806,13.79,21.63,21.623,99.93]
[1693362190406,13.79,21.627,21.62,99.87]
[1693362194517,99.87,21.628,21.62,99.87]
[1693362195215,99.87,21.63,21.622,99.87]
[1693362198411,36.58094356,21.632,21.625,99.87]
[1693362198606,99.87,21.633,21.625,99.87]
[1693362199912,136.46944495,21.633,21.625,99.87]
[1693362200212,36.59944495,21.633,21.629,99.87]
[1693362200416,13.79,21.636,21.629,99.87]
[1693362201116,99.87,21.635,21.627,99.87]
[1693362201608,99.87,21.632,21.623,0.06]
[1693362201813,99.87,21.632,21.624,99.87]
[1693362203815,13.79,21.639,21.623,0.06]
[1693362203816,99.87,21.629,21.623,0.06]
[1693362204023,13.79,21.625,21.618,99.87]
[1693362209918,99.87,21.623,21.614,99.87]
[1693362210117,500.0,21.632,21.612,19.6187]
[1693362210118,99.87,21.622,21.612,19.6187]
[1693362210326,99.87,21.622,21.615,99.87]
[1693362210724,99.87,21.622,21.619,0.74455949]
[1693362210918,99.87,21.622,21.615,99.87]
[1693362212121,99.87,21.622,21.613,99.87]
[1693362212324,0.67994762,21.624,21.6,60.38757739]
[1693362212325,13.79,21.614,21.607,99.87]
[1693362212523,99.87,21.615,21.608,13.87]
[1693362212722,500.0,21.623,21.6,23.44770691]
[1693362212723,13.79,21.618,21.611,13.87]
[1693362214119,99.87,21.619,21.611,13.87]
[1693362214320,99.87,21.622,21.614,99.87]
[1693362216130,99.87,21.616,21.607,99.87]
[1693362217322,13.79,21.618,21.605,111.34]
[1693362218726,0.69457557,21.614,21.605,111.34]
[1693362225832,14.48457557,21.614,21.601,131.6478]
[1693362226925,13.79,21.614,21.601,131.6478]
[1693362227528,13.79,21.614,21.601,111.34]
[1693362227718,36.92315,21.614,21.601,111.34]
[1693362228119,13.79,21.611,21.598,111.34]
[1693362231333,111.34,21.61,21.597,13.87]
[1693362231926,20.5173,21.613,21.6,111.34]
[1693362232434,125.13,21.614,21.6,111.34]
[1693362236140,161.49464599,21.614,21.6,111.34]
[1693362240738,0.74656568,21.609,21.6,111.34]
[1693362241141,0.74656568,21.609,21.601,20.6134]
[1693362241642,0.74656568,21.609,21.6,111.34]
[1693362241838,0.74656568,21.609,21.601,20.6134]
[1693362242246,0.74656568,21.609,21.593,22.8612165]
[1693362242544,100.27,21.608,21.6,13.89]
[1693362244039,100.27,21.608,21.599,100.27]
[1693362244241,100.27,21.604,21.598,20.6134]
[1693362244441,100.27,21.604,21.597,13.89]
[1693362247442,100.27,21.607,21.6,13.89]
[1693362249149,0.74820035,21.606,21.6,13.89]
[1693362249347,0.74820035,21.606,21.593,22.8612165]
[1693362249348,0.74820035,21.606,21.601,100.27]
[1693362250344,100.27,21.61,21.601,100.27]
[1693362250843,136.57370369,21.61,21.601,100.27]
[1693362251048,0.65972188,21.606,21.601,100.27]
[1693362252349,100.92972188,21.606,21.598,100.27]
[1693362253150,100.27,21.606,21.598,100.27]
[1693362253951,13.81,21.605,21.598,100.27]
[1693362254253,100.27,21.606,21.598,100.27]
[1693362255541,100.27,21.606,21.6,0.72791179]
[1693362256341,0.6634115,21.604,21.6,0.72791179]
[1693362257350,100.27,21.609,21.601,100.27]
[1693362257652,100.27,21.613,21.603,100.27]
[1693362262148,100.27,21.611,21.603,100.27]
[1693362271462,0.62563972,21.609,21.603,100.27]
[1693362272064,0.62563972,21.609,21.603,13.88]
[1693362273063,0.62563972,21.609,21.602,100.27]
[1693362273265,0.62563972,21.609,21.595,100.27]
[1693362273266,100.27,21.604,21.595,100.27]
[1693362273457,100.27,21.601,21.592,100.27]
[1693362273862,100.27,21.601,21.593,13.88]
[1693362274866,20.6002,21.608,21.595,100.27]
[1693362275165,100.27,21.604,21.595,100.27]
[1693362280667,100.27,21.607,21.6,13.88]
[1693362283274,100.27,21.61,21.603,13.88]
[1693362285770,0.64950215,21.609,21.603,13.88]
[1693362288878,0.64950215,21.609,21.604,0.06]
[1693362292084,100.27,21.608,21.604,0.06]
[1693362292389,100.27,21.605,21.6,13.88]
[1693362292683,100.27,21.603,21.594,100.27]
[1693362293278,100.27,21.604,21.597,13.88]
[1693362295285,100.27,21.604,21.596,100.27]
[1693362295584,0.65236269,21.603,21.596,100.27]
[1693362296288,0.65236269,21.603,21.597,13.88]
[1693362296588,0.65236269,21.603,21.596,100.27]
[1693362296589,0.65236269,21.603,21.598,100.27]
[1693362297385,100.27,21.607,21.598,100.27]
[1693362297783,100.27,21.603,21.595,100.27]
[1693362298981,0.62779823,21.601,21.581,217.93811338]
[1693362299294,13.81,21.599,21.58,33.7236]
[1693362299488,100.27,21.6,21.591,100.27]
[1693362300183,13.81,21.599,21.58,33.7236]
[1693362300387,13.81,21.599,21.58,13.88]
[1693362300585,13.81,21.597,21.581,21.1055]
[1693362300776,13.81,21.597,21.591,100.27]
[1693362300983,0.7070919,21.598,21.591,100.27]
[1693362301384,100.27,21.6,21.591,100.27]
[1693362301980,13.81,21.599,21.591,100.27]
[1693362302290,100.27,21.6,21.591,100.27]
[1693362303083,13.81,21.599,21.591,100.27]
[1693362303287,37.59629628,21.604,21.588,100.27]
[1693362303288,100.27,21.597,21.588,100.27]
[1693362305788,100.27,21.597,21.589,13.88]
[1693362307192,100.27,21.603,21.594,100.27]
[1693362307390,13.81,21.605,21.591,111.47]
[1693362307887,13.81,21.605,21.593,13.88]
[1693362308594,149.12817507,21.609,21.595,111.47]
[1693362308789,111.47,21.609,21.595,135.17776989]
[1693362310891,111.47,21.609,21.595,111.47]
[1693362313392,0.64914333,21.604,21.595,111.47]
[1693362313585,0.64914333,21.604,21.591,111.47]
[1693362313790,111.47,21.599,21.585,111.47]
[1693362315197,0.69099282,21.594,21.585,111.47]
[1693362316098,0.69099282,21.594,21.567,445.88]
[1693362316286,111.47,21.589,21.574,111.47]
[1693362318292,111.47,21.585,21.572,111.47]
[1693362319296,41.68059198,21.593,21.56,0.11197616]
[1693362319493,111.47,21.579,21.568,21.1083]
[1693362319686,111.47,21.579,21.566,111.47]
[1693362319891,111.47,21.579,21.567,13.88]
[1693362320398,13.81,21.575,21.567,13.88]
[1693362320998,13.81,21.575,21.567,13.91]
[1693362321194,0.72893099,21.576,21.567,13.91]
[1693362321896,13.83,21.575,21.567,13.91]
[1693362322196,0.72893099,21.576,21.567,13.91]
[1693362322392,0.72893099,21.576,21.569,111.47]
[1693362322593,0.72893099,21.576,21.569,135.70513898]
[1693362323194,0.72893099,21.576,21.57,111.47]
[1693362323395,111.47,21.583,21.57,111.47]
[1693362323793,111.47,21.583,21.571,19.6697]
[1693362324396,0.6437049,21.575,21.57,111.47]
[1693362324595,0.6437049,21.575,21.571,19.6697]
[1693362324790,111.47,21.583,21.571,19.6697]
[1693362324991,111.47,21.583,21.575,0.64372529]
[1693362325195,13.83,21.582,21.575,0.64372529]
[1693362325796,111.47,21.583,21.575,0.64372529]
[1693362326197,13.83,21.582,21.575,0.64372529]
[1693362326701,111.47,21.583,21.575,0.64372529]
[1693362329003,13.83,21.582,21.575,0.64372529]
[1693362333501,13.83,21.582,21.575,0.70372529]
[1693362342007,111.47,21.585,21.575,0.70372529]
[1693362342816,111.47,21.585,21.575,0.06]
[1693362344215,111.47,21.582,21.575,0.06]
[1693362347917,111.47,21.579,21.57,20.8366]
[1693362348821,111.47,21.579,21.569,24.23513898]
[1693362349021,111.47,21.579,21.566,111.47]
[1693362349821,0.63793834,21.575,21.566,111.47]
[1693362350019,112.10793834,21.575,21.564,20.9264]
[1693362355320,112.10793834,21.575,21.562,111.47]
[1693362356219,111.47,21.575,21.562,111.47]
[1693362360933,0.7538933,21.571,21.562,111.47]
[1693362363529,0.7538933,21.571,21.567,13.91]
[1693362367433,0.7538933,21.571,21.567,14.55447378]
[1693362369338,0.7538933,21.571,21.567,0.64447378]
[1693362375051,22.90006412,21.569,21.567,0.64447378]
[1693362376350,13.83,21.567,21.558,19.2245]
[1693362376749,13.83,21.567,21.554,111.47]
[1693362377247,22.90006412,21.569,21.549,46.48300792]
[1693362377452,100.67,21.564,21.556,100.67]
[1693362378054,0.75205759,21.56,21.556,100.67]
[1693362381053,0.75205759,21.56,21.554,100.67]
[1693362382249,0.75205759,21.56,21.552,13.91]
[1693362384555,0.75205759,21.56,21.553,111.88]
[1693362384856,111.88,21.566,21.553,111.88]
[1693362385258,13.84,21.565,21.553,111.88]
[1693362386861,22.90006412,21.569,21.562,13.91]
[1693362388363,22.90006412,21.569,21.559,13.91]
[1693362393470,22.90006412,21.569,21.56,0.06]
[1693362397866,13.84,21.567,21.56,0.06]
[1693362398069,111.88,21.564,21.552,13.91]
[1693362399974,13.84,21.559,21.548,13.91]
[1693362401174,13.84,21.556,21.543,359.60594917]
[1693362402266,13.84,21.553,21.541,111.88]
[1693362402872,111.88,21.554,21.542,28.45391274]
[1693362403176,111.88,21.554,21.542,20.4786]
[1693362403577,13.84,21.553,21.542,20.4786]
[1693362404578,111.88,21.554,21.542,20.4786]
[1693362404777,111.88,21.557,21.545,13.91]
[1693362405276,22.90006412,21.547,21.545,13.91]
[1693362407078,111.88,21.56,21.546,111.88]
[1693362407271,111.88,21.564,21.552,13.91]
[1693362409173,111.88,21.567,21.554,111.88]
[1693362409579,111.88,21.57,21.557,111.88]
[1693362412177,111.88,21.57,21.559,13.91]
[1693362415482,111.88,21.57,21.557,111.88]
[1693362415986,111.88,21.573,21.56,111.88]
[1693362417587,111.88,21.577,21.564,111.88]
[1693362417990,111.88,21.577,21.565,19.4018]
[1693362418785,111.88,21.57,21.552,38.0139211]
[1693362418992,111.88,21.566,21.553,139.25405908]
[1693362419187,111.88,21.566,21.553,131.2818]
[1693362419494,111.88,21.563,21.548,111.88]
[1693362419886,111.88,21.56,21.548,111.88]
[1693362420792,111.88,21.56,21.546,134.46602359]
[1693362421990,111.88,21.56,21.547,341.12128377]
[1693362423586,111.88,21.56,21.547,341.18128377]
[1693362423787,111.88,21.56,21.547,111.94]
[1693362423991,111.88,21.563,21.55,111.88]
[1693362425797,111.88,21.559,21.547,0.06]
[1693362428589,111.88,21.556,21.547,0.06]
[1693362428797,0.73192931,21.555,21.547,0.06]
[1693362431894,0.73192931,21.555,21.549,111.88]
[1693362432096,0.73192931,21.555,21.549,136.50193532]
[1693362433502,0.73192931,21.555,21.553,111.88]
[1693362441809,14.5394,21.565,21.553,111.88]
[1693362442199,111.88,21.566,21.553,111.88]
[1693362449005,37.46821344,21.569,21.557,111.88]
[1693362449205,111.88,21.57,21.557,111.88]
[1693362459625,14.566,21.576,21.559,111.88]
[1693362459832,111.88,21.572,21.559,111.88]
[1693362460232,111.88,21.572,21.56,19.0704]
[1693362461927,111.88,21.577,21.563,111.88]
[1693362462825,149.79836734,21.577,21.563,111.88]
[1693362465729,111.88,21.577,21.563,111.88]
[1693362467021,111.88,21.577,21.564,13.91]
[1693362467022,13.83,21.576,21.564,13.91]
[1693362470335,13.83,21.578,21.567,13.91]
[1693362470537,13.83,21.578,21.567,40.31950267]
[1693362476938,37.89610389,21.58,21.569,125.79]
[1693362477243,13.83,21.583,21.569,13.91]
[1693362477434,100.53,21.58,21.572,100.53]
[1693362481044,100.53,21.581,21.574,100.53]
[1693362482044,100.53,21.581,21.573,100.53]
[1693362483647,13.83,21.592,21.58,13.91]
[1693362483844,100.53,21.59,21.582,100.53]
[1693362484249,153.67078184,21.604,21.583,100.53]
[1693362484250,100.53,21.592,21.583,100.53]
[1693362485647,100.53,21.588,21.58,100.53]
[1693362486442,13.83,21.583,21.576,100.53]
[1693362487248,111.67,21.587,21.573,111.67]
[1693362488549,134.83208,21.587,21.573,111.67]
[1693362488953,23.16208,21.587,21.576,111.67]
[1693362490643,23.16316,21.586,21.576,111.67]
[1693362492045,23.16316,21.586,21.574,111.67]
[1693362505962,111.67,21.583,21.57,111.67]
[1693362506165,13.83,21.581,21.57,111.67]
[1693362506364,23.16852,21.581,21.57,111.67]
[1693362507261,23.16852,21.581,21.569,13.91]
[1693362507458,123.70852,21.581,21.573,100.54]
[1693362508668,100.54,21.577,21.569,100.54]
[1693362509664,100.54,21.577,21.575,0.68290216]
[1693362509864,100.54,21.577,21.569,100.54]
[1693362512065,115.0823053,21.579,21.571,100.54]
[1693362512660,114.37,21.579,21.571,100.54]
[1693362513274,0.75083386,21.577,21.571,100.54]
[1693362513770,0.75083386,21.577,21.575,0.06]
[1693362518280,0.75083386,21.577,21.57,100.54]
[1693362519072,100.54,21.578,21.57,100.54]
[1693362519577,0.74000435,21.576,21.57,100.54]
[1693362521982,101.28000435,21.576,21.569,100.54]
[1693362522680,100.54,21.576,21.569,100.54]
[1693362523284,0.73522558,21.575,21.569,100.54]
[1693362526074,0.73522558,21.575,21.57,0.71265441]
[1693362538389,13.83,21.574,21.57,0.71265441]
[1693362538587,114.37,21.574,21.566,100.54]
[1693362539193,100.54,21.574,21.566,100.54]
[1693362540197,114.37,21.574,21.566,100.54]
[1693362541197,13.83,21.572,21.565,100.54]
[1693362544000,13.83,21.572,21.57,0.06]
[1693362546799,100.54,21.573,21.57,0.06]
[1693362547100,31.69550668,21.579,21.57,0.06]
[1693362547400,100.54,21.573,21.57,0.06]
[1693362548300,100.54,21.572,21.57,0.06]
[1693362549597,100.54,21.572,21.564,100.54]
[1693362552003,100.54,21.571,21.563,100.54]
[1693362555801,0.72313873,21.569,21.563,100.54]
[1693362567402,13.83,21.568,21.563,100.54]
[1693362571312,13.83,21.568,21.562,100.54]
[1693362572004,114.37,21.568,21.561,13.91]
[1693362572911,100.54,21.568,21.561,13.91]
[1693362573610,0.72313873,21.569,21.563,100.54]
[1693362577116,100.54,21.571,21.563,100.54]
[1693362577318,100.54,21.575,21.567,100.54]
[1693362578918,0.76417874,21.573,21.567,100.54]
[1693362581612,0.76417874,21.573,21.569,100.54]
[1693362586112,100.54,21.577,21.569,100.54]
[1693362587618,0.74183155,21.575,21.572,13.91]
[1693362596130,13.9,21.572,21.542,500.0]
[1693362596332,500.74183155,21.575,21.551,100.54]
[1693362596333,13.9,21.56,21.551,100.54]
[1693362596629,13.9,21.56,21.548,100.54]
[1693362597331,20.20476547,21.568,21.545,100.54]
[1693362597332,13.9,21.556,21.545,100.54]
[1693362598332,100.54,21.554,21.544,20.2146]
[1693362598733,100.54,21.554,21.543,11.50507223]
[1693362601534,100.54,21.554,21.544,100.54]
[1693362601734,100.54,21.559,21.55,100.54]
[1693362602336,13.9,21.566,21.545,24.37221663]
[1693362602337,100.54,21.556,21.545,24.37221663]
[1693362602540,100.54,21.556,21.544,19.2211]
[1693362602541,100.54,21.556,21.547,100.54]
[1693362602738,100.54,21.556,21.547,122.67261462]
[1693362604446,100.54,21.556,21.547,22.13261462]
[1693362604638,100.54,21.553,21.547,22.13261462]
[1693362608742,100.54,21.553,21.543,11.50507223]
[1693362608938,100.54,21.553,21.544,100.54]
[1693362609143,13.9,21.554,21.546,100.54]
[1693362609742,100.54,21.551,21.543,112.04507223]
[1693362610352,100.54,21.555,21.546,100.54]
[1693362610542,100.54,21.559,21.55,100.54]
[1693362611151,13.9,21.558,21.55,100.54]
[1693362611340,19.7669,21.567,21.548,100.54]
[1693362611341,13.9,21.556,21.548,100.54]
[1693362611650,100.54,21.554,21.545,100.54]
[1693362612048,100.54,21.555,21.547,100.54]
[1693362612651,100.54,21.558,21.55,100.54]
[1693362613548,100.54,21.558,21.552,0.64998075]
[1693362613751,0.6306416,21.556,21.552,0.64998075]
[1693362623151,0.6306416,21.556,21.539,149.58382829]
[1693362623355,13.92,21.554,21.532,20.9746]
[1693362623654,13.92,21.554,21.538,111.93]
[1693362623655,111.93,21.552,21.538,111.93]
[1693362623855,13.92,21.554,21.541,111.93]
[1693362624255,447.72,21.577,21.544,111.93]
[1693362624256,13.92,21.556,21.544,111.93]
[1693362624849,0.70252809,21.55,21.545,0.70747115]
[1693362631655,90.15512809,21.551,21.545,0.70747115]
[1693362631862,447.72,21.577,21.545,0.70747115]
[1693362632068,111.93,21.57,21.555,111.93]
[1693362633363,13.92,21.566,21.553,111.93]
[1693362634757,13.92,21.566,21.543,0.06]
[1693362634962,13.92,21.562,21.549,111.93]
[1693362635857,13.92,21.566,21.546,111.93]
[1693362636063,13.92,21.558,21.546,111.93]
[1693362636265,111.93,21.559,21.546,111.93]
[1693362636862,111.93,21.559,21.547,19.2915]
[1693362638564,484.33438514,21.567,21.547,19.2915]
[1693362638565,0.66712171,21.555,21.549,111.93]
[1693362639363,13.92,21.562,21.549,111.93]
[1693362639763,13.92,21.562,21.55,0.67339215]
[1693362639965,0.67581435,21.554,21.55,0.67339215]
[1693362644380,111.93,21.567,21.553,111.93]
[1693362644572,111.93,21.567,21.553,137.18628031]
[1693362645381,13.92,21.57,21.557,111.93]
[1693362645878,225.77201336,21.596,21.553,25.25628031]
[1693362645879,13.92,21.574,21.561,111.93]
[1693362649474,13.92,21.574,21.562,20.5508]
[1693362649870,13.92,21.574,21.561,111.93]
[1693362650077,13.92,21.574,21.562,20.5508]
[1693362650571,13.92,21.574,21.561,111.93]
[1693362650775,13.92,21.574,21.562,19.4056]
[1693362651683,111.93,21.575,21.562,19.4056]
[1693362652280,13.91,21.574,21.562,19.4056]
[1693362658982,111.93,21.575,21.562,19.4056]
[1693362660581,111.93,21.578,21.565,111.93]
[1693362660787,111.93,21.581,21.568,111.93]
[1693362665089,51.11593691,21.584,21.572,111.93]
[1693362665487,51.11593691,21.584,21.573,19.5731]
[1693362667188,111.93,21.589,21.575,111.93]
[1693362667386,8.51803934,21.588,21.575,111.93]
[1693362670487,0.701307,21.584,21.579,0.709376]
[1693362677586,0.701307,21.584,21.579,112.639376]
[1693362683997,0.701307,21.584,21.579,0.709376]
[1693362697320,101.181307,21.584,21.579,0.709376]
[1693362701926,0.701307,21.584,21.579,0.709376]
[1693362707231,101.181307,21.584,21.579,0.709376]
[1693362720344,100.48,21.581,21.579,0.709376]
[1693362721341,100.48,21.581,21.573,19.5731]
[1693362723843,100.48,21.581,21.572,100.48]
[1693362724343,0.71414214,21.579,21.572,100.48]
[1693362726041,100.48,21.584,21.575,100.48]
[1693362726250,100.48,21.584,21.575,125.93528923]
[1693362727641,100.48,21.586,21.578,100.48]
[1693362732045,100.48,21.584,21.576,119.6155]
[1693362736344,100.48,21.584,21.576,100.48]
[1693362736547,100.48,21.581,21.573,100.48]
[1693362738647,100.48,21.581,21.579,0.06]
[1693362739950,100.48,21.584,21.579,0.06]
[1693362751948,136.86554216,21.586,21.579,0.06]
[1693362752157,100.48,21.586,21.579,0.06]
[1693362754958,0.71183763,21.585,21.58,0.69806922]
[1693362761763,0.71183763,21.585,21.582,100.48]
[1693362776669,0.71183763,21.585,21.584,100.48]
[1693362777277,0.71183763,21.585,21.582,100.48]
[1693362780886,0.71183763,21.585,21.584,100.48]
[1693362782883,27.0179,21.6,21.584,100.48]
[1693362782884,100.48,21.596,21.584,100.48]
[1693362783075,127.4979,21.6,21.59,100.48]
[1693362783279,13.9,21.598,21.59,100.48]
[1693362783584,136.72270495,21.6,21.59,100.48]
[1693362783776,13.9,21.598,21.59,100.48]
[1693362783983,8.51328335,21.597,21.59,100.48]
[1693362784179,36.24270495,21.6,21.594,100.48]
[1693362784383,100.48,21.604,21.594,100.48]
[1693362784882,136.91538674,21.604,21.594,100.48]
[1693362785278,36.43538674,21.604,21.596,100.48]
[1693362785489,13.9,21.605,21.596,100.48]
[1693362785688,13.9,21.602,21.594,100.48]
[1693362786381,13.9,21.595,21.587,100.48]
[1693362789381,13.9,21.595,21.589,0.66769555]
[1693362789980,13.9,21.6,21.591,100.48]
[1693362790182,37.11718387,21.602,21.593,100.48]
[1693362790183,8.5128796,21.599,21.593,100.48]
[1693362790383,13.9,21.606,21.597,100.48]
[1693362790587,8.51050683,21.605,21.589,0.66769555]
[1693362790783,13.9,21.602,21.582,536.35757294]
[1693362790986,13.9,21.602,21.593,100.48]
[1693362791193,13.9,21.606,21.597,100.48]
[1693362792091,100.48,21.609,21.599,100.48]
[1693362792294,8.51060558,21.608,21.599,100.48]
[1693362793093,8.51060558,21.608,21.602,0.75438482]
[1693362794097,100.48,21.606,21.602,0.75438482]
[1693362795403,100.48,21.609,21.602,0.75438482]
[1693362797001,910.7948124,21.613,21.602,0.75438482]
[1693362797201,100.48,21.609,21.602,0.75438482]
[1693362799305,8.50860662,21.608,21.602,0.75438482]
[1693362800704,100.48,21.609,21.602,0.75438482]
[1693362801101,13.89,21.606,21.602,0.75438482]
[1693362806409,100.48,21.609,21.602,0.75438482]
[1693362806610,8.50946288,21.608,21.602,0.75438482]
[1693362811509,13.89,21.606,21.602,0.75438482]
[1693362816208,100.48,21.607,21.602,0.75438482]
[1693362816410,13.89,21.606,21.602,0.75438482]
[1693362822117,138.22710513,21.609,21.602,0.75438482]
[1693362822317,100.48,21.609,21.602,0.75438482]
[1693362830719,138.33925925,21.609,21.602,0.75438482]
[1693362832020,37.85925925,21.609,21.603,100.48]
[1693362832319,100.48,21.611,21.603,100.48]
[1693362838630,13.89,21.606,21.599,100.48]
[1693362839931,100.48,21.604,21.595,100.48]
[1693362842326,100.48,21.602,21.593,100.48]
[1693362848028,100.48,21.602,21.597,0.11178449]
[1693362851941,13.89,21.602,21.597,0.11178449]
[1693362857939,13.89,21.602,21.595,100.48]
[1693362862045,100.48,21.602,21.594,100.48]
[1693362863247,100.48,21.602,21.597,0.11178449]
[1693362865544,37.43584992,21.604,21.597,0.11178449]
[1693362865747,100.48,21.606,21.597,0.11178449]
[1693362866449,100.48,21.604,21.597,0.11178449]
[1693362878858,137.63925925,21.607,21.598,100.48]
[1693362879052,0.75785815,21.603,21.598,100.48]
[1693362881961,0.75785815,21.603,21.597,0.11178449]
[1693362887361,0.75785815,21.603,21.6,100.48]
[1693362890277,0.75785815,21.603,21.602,100.48]
[1693362893470,100.48,21.612,21.602,100.48]
[1693362893768,100.48,21.612,21.604,100.48]
[1693362896875,100.48,21.615,21.607,100.48]
[1693362898077,123.38441987,21.621,21.611,100.48]
[1693362898078,13.89,21.619,21.611,100.48]
[1693362898278,100.48,21.62,21.611,100.48]
[1693362901376,13.89,21.619,21.611,100.48]
[1693362903578,100.48,21.616,21.607,100.48]
[1693362904487,100.48,21.62,21.611,100.48]
[1693362906584,100.48,21.622,21.614,100.48]
[1693362907586,50.71516187,21.624,21.616,100.48]
[1693362908386,36.82516187,21.624,21.616,100.48]
[1693362908579,100.48,21.625,21.616,100.48]
[1693362908775,0.66635948,21.622,21.618,0.73024339]
[1693362912190,0.66635948,21.622,21.618,101.21024339]
[1693362914293,13.89,21.621,21.618,0.73024339]
[1693362915393,14.55635948,21.622,21.618,0.73024339]
[1693362915794,0.66635948,21.622,21.619,100.48]
[1693362918397,13.87,21.621,21.619,100.48]
[1693362919001,0.66635948,21.622,21.619,100.48]
[1693362922102,0.66635948,21.622,21.618,101.21024339]
[1693362931911,0.66635948,21.622,21.621,100.48]
[1693362947116,0.66635948,21.622,21.619,100.48]
[1693362947915,13.88,21.621,21.619,100.48]
[1693362949717,0.66635948,21.622,21.619,100.48]